[Event "8th Memorial Ekrem Galijatovic 2022"]
[Site "Sarajevo"]
[Date "2022.03.13"]
[Round "4.3"]
[White "Dizdarevic, Emir"]
[Black "Selimovic, Amir"]
[Result "1-0"]
[ECO "A05"]
[WhiteElo "2379"]
[BlackElo "1943"]
[Annotator "RC"]
[PlyCount "57"]
[EventDate "2022.03.13"]
[EventType "tourn"]
[EventCountry "BIH"]
[SourceTitle "playchess.com"]
[Source "ChessBase"]
[SourceQuality "1"]
[TimeControl "5400+30"]

1. Nf3 {[%emt 0:00:14]} Nf6 {[%emt 0:00:14]} 2. g3 {[%emt 0:00:20]} g6 {[%emt 0:00:11]} 3. b3 {[%emt 0:00:23]} Bg7 {[%emt 0:00:18]} 4. Bb2 {[%emt 0:00:08]} O-O {[%emt 0:01:15]} 5. Bg2 {[%emt 0:00:07]} d5 {[%emt 0:00:25]} 6. c4 {[%emt 0:00:18]} c6 {[%emt 0:00:43]} 7. O-O {[%emt 0:00:16]} Bg4 {[%emt 0:01:38]} 8. d3 {[%emt 0:01:13]} Bxf3 {[%emt 0:01:27]} 9. Bxf3 {[%emt 0:00:24]} Nbd7 {[%emt 0:00:22]} 10. Qc2 {[%emt 0:04:06]} e5 {[%emt 0:02:17]} 11. e3 {[%emt 0:06:09]} Re8 {[%emt 0:01:34]} 12. Nd2 {[%emt 0:01:46]} Rc8 {[%emt 0:04:41]} 13. Bg2 {[%emt 0:04:38]} h5 {[%emt 0:00:38]} 14. Rac1 {[%emt 0:02:23]} Qe7 {[%emt 0:03:34]} 15. cxd5 {[%emt 0:03:17]} Nxd5 {[%emt 0:01:06]} 16. a3 {[%emt 0:02:32]} N5f6 {[%emt 0:01:33]} 17. b4 {[%emt 0:00:41]} Nb6 {[%emt 0:01:56]} 18. Nb3 {[%emt 0:06:51]} Nfd7 {[%emt 0:01:31]} 19. Ba1 {[%emt 0:02:16]} Qd6 {[%emt 0:03:56]} 20. Rfd1 {[%emt 0:03:30]} Qb8 {[%emt 0:00:36]} 21. Na5 {[%emt 0:03:04]} Rc7 {[%emt 0:03:31]} 22. b5 {[%emt 0:03:48]} c5 {[%emt 0:00:40]} 23. a4 {[%emt 0:01:41]} Nc8 {[%emt 0:02:04]} 24. Nc4 {[%emt 0:02:39]} b6 {[%emt 0:01:28]} 25. Bc3 {[%emt 0:00:43]} Bf8 {[%emt 0:01:34]} 26. Bc6 {[%emt 0:02:28]} Bg7 {[%emt 0:01:37]} 27. Qb2 {[%emt 0:03:14]} Rxc6 {[%emt 0:01:08]} 28. bxc6 {[%emt 0:00:07]} Nf8 {[%emt 0:00:10]} 29. d4 {[%emt 0:00:52]} 1-0

[Event "8th Memorial Ekrem Galijatovic 2022"]
[Site "Sarajevo"]
[Date "2022.03.14"]
[Round "5.1"]
[White "Trkulja, Goran"]
[Black "Mrkovic, Nikola"]
[Result "1-0"]
[ECO "A06"]
[WhiteElo "2255"]
[BlackElo "1698"]
[Annotator "ChessBase"]
[PlyCount "70"]
[EventDate "2022.03.13"]
[EventType "tourn"]
[EventCountry "BIH"]
[SourceTitle "playchess.com"]
[Source "ChessBase"]
[SourceQuality "1"]
[TimeControl "5400+30"]

1. Nf3 {[%emt 0:01:10]} d5 {[%emt 0:00:06]} 2. c4 {[%emt 0:00:36]} e6 {[%emt 0:00:54]} 3. e3 {[%emt 0:00:16]} Nf6 {[%emt 0:01:33]} 4. b3 {[%emt 0:00:19]} Nbd7 {[%emt 0:04:44]} 5. Bb2 {[%emt 0:00:24]} b6 {[%emt 0:03:07]} 6. Be2 {[%emt 0:00:43]} Be7 {[%emt 0:01:10]} 7. O-O {[%emt 0:03:19]} O-O {[%emt 0:02:45]} 8. d4 {[%emt 0:01:14]} Bb7 {[%emt 0:04:32]} 9. Nbd2 {[%emt 0:02:31]} Rc8 {[%emt 0:04:40]} 10. Rc1 {[%emt 0:00:33]} c5 {[%emt 0:00:47]} 11. Ne5 {[%emt 0:03:25]} cxd4 {[%emt 0:11:42]} 12. exd4 {[%emt 0:02:13]} h6 {[%emt 0:07:02]} 13. Ndf3 {[%emt 0:05:14]} Nxe5 {[%emt 0:04:07]} 14. Nxe5 {[%emt 0:03:04]} dxc4 {[%emt 0:19:28]} 15. bxc4 {[%emt 0:01:19]} Nd7 {[%emt 0:06:42]} 16. Ng4 {[%emt 0:08:49]} Nf6 {[%emt 0:07:12]} 17. Ne3 {[%emt 0:01:09]} Qd7 {[%emt 0:00:59]} 18. Bf3 {[%emt 0:04:13]} Rfd8 {[%emt 0:01:53]} 19. Bxb7 {[%emt 0:01:06]} Qxb7 {[%emt 0:00:13]} 20. Qe2 {[%emt 0:00:54]} Qa6 {[%emt 0:04:54]} 21. f4 {[%emt 0:02:55]} Ba3 {[%emt 0:03:15]} 22. f5 {[%emt 0:03:49]} Re8 {[%emt 0:01:04]} 23. Rc3 {[%emt 0:03:38]} Bxb2 {[%emt 0:01:30]} 24. Qxb2 {[%emt 0:00:08]} exf5 {[%emt 0:02:40]} 25. Nxf5 {[%emt 0:01:28]} Ne4 {[%emt 0:01:44]} 26. Ra3 {[%emt 0:03:36]} Qxc4 {[%emt 0:01:22]} 27. Rxa7 {[%emt 0:00:28]} b5 {[%emt 0:00:52]} 28. Ne7+ {[%emt 0:00:48]} Rxe7 {[%emt 0:01:15]} 29. Rxe7 {[%emt 0:00:09]} Nc3 {[%emt 0:00:21]} 30. Qf2 {[%emt 0:03:36]} f6 {[%emt 0:01:19]} 31. Rfe1 {[%emt 0:02:22]} Qd5 {[%emt 0:01:36]} 32. h3 {[%emt 0:01:23]} Nxa2 {[%emt 0:00:30]} 33. Qg3 {[%emt 0:03:31]} Qxd4+ {[%emt 0:00:31]} 34. Kh1 {[%emt 0:00:46]} f5 {[%emt 0:00:18]} 35. Qg6 {[%emt 0:00:34]} Qf6 {[%emt 0:00:41]} 1-0

[Event "8th Memorial Ekrem Galijatovic 2022"]
[Site "Sarajevo"]
[Date "2022.03.14"]
[Round "5.3"]
[White "Selimovic, Amir"]
[Black "Mrndjic, Muamer"]
[Result "0-1"]
[ECO "A45"]
[WhiteElo "1943"]
[BlackElo "2274"]
[Annotator "ChessBase"]
[PlyCount "22"]
[EventDate "2022.03.13"]
[EventType "tourn"]
[EventCountry "BIH"]
[SourceTitle "playchess.com"]
[Source "ChessBase"]
[SourceQuality "1"]
[TimeControl "5400+30"]

1. d4 {[%emt 0:00:17]} Nf6 {[%emt 0:00:23]} 2. Bf4 {[%emt 0:00:20]} d5 {[%emt 0:00:16]} 3. e3 {[%emt 0:00:10]} c5 {[%emt 0:00:07]} 4. c3 {[%emt 0:00:26]} Nc6 {[%emt 0:00:12]} 5. Nd2 {[%emt 0:00:18]} Qb6 {[%emt 0:00:16]} 6. Qb3 {[%emt 0:00:12]} c4 {[%emt 0:00:15]} 7. Qc2 {[%emt 0:00:07]} g6 {[%emt 0:00:21]} 8. e4 {[%emt 0:00:19]} e6 {[%emt 0:08:55]} 9. e5 {[%emt 0:07:12]} Nd7 {[%emt 0:04:00]} 10. b3 {[%emt 0:00:36]} Nxd4 {[%emt 0:04:03]} 11. Qc1 {[%emt 0:07:34]} cxb3 0-1

[Event "8th Memorial Ekrem Galijatovic 2022"]
[Site "Sarajevo"]
[Date "2022.03.15"]
[Round "6.1"]
[White "Mrkovic, Nikola"]
[Black "Alhdad, Ahmed O."]
[Result "1-0"]
[ECO "B07"]
[WhiteElo "1698"]
[BlackElo "1811"]
[Annotator "NA"]
[PlyCount "110"]
[EventDate "2022.03.13"]
[EventType "tourn"]
[EventCountry "BIH"]
[SourceTitle "playchess.com"]
[Source "ChessBase"]
[SourceQuality "1"]
[TimeControl "5400+30"]

1. e4 {[%emt 0:00:03]} d6 {[%emt 0:05:00]} 2. d4 {[%emt 0:00:01]} Nf6 {[%emt 0:00:09]} 3. Nc3 {[%emt 0:00:26]} Nbd7 {[%emt 0:01:17]} 4. Nf3 {[%emt 0:02:54]} e5 {[%emt 0:00:56]} 5. Bc4 {[%emt 0:06:27]} Be7 {[%emt 0:01:09]} 6. O-O {[%emt 0:09:37]} O-O {[%emt 0:01:29]} 7. dxe5 {[%emt 0:06:10] 7.a4 gains popularity.} dxe5 {[%emt 0:02:09]} 8. Qe2 {[%emt 0:07:45]} c6 {[%emt 0:00:40]} 9. a3 {[%emt 0:08:44]} Qc7 {[%emt 0:00:30]} 10. Bg5 {[%emt 0:00:49]} Nc5 {[%emt 0:01:38]} 11. h3 {[%emt 0:03:07]} Be6 {[%emt 0:01:56]} 12. Rad1 {[%emt 0:02:16]} b5 {[%emt 0:08:55]} 13. Bxe6 {[%emt 0:03:08]} Nxe6 {[%emt 0:00:08]} 14. Be3 {[%emt 0:04:26]} a5 {[%emt 0:06:28] [#]} 15. Ng5 $146 {[%emt 0:15:29]} ({Predecessor:} 15. Nd2 b4 16. Na4 bxa3 17. bxa3 Bxa3 18. Nc4 Be7 19. Bb6 Qb8 20. Nxa5 Nd4 21. Qc4 Nxe4 22. Bxd4 Rxa5 {½-½ (31) Mueller,H (1870)-Wunderer,E (2151) Oberstdorf 2002}) 15... Nd8 {[%emt 0:00:53]} 16. f4 {[%emt 0:03:21]} Bd6 {[%emt 0:03:44]} 17. Qd3 {[%emt 0:08:41]} Nb7 {[%emt 0:00:38]} 18. fxe5 {[%emt 0:06:19]} Bxe5 {[%emt 0:00:08]} 19. Bd4 {[%emt 0:00:40]} Rad8 {[%emt 0:03:31]} 20. Bxe5 {[%emt 0:03:19]} Qxe5 {[%emt 0:00:24]} 21. Qe3 {[%emt 0:00:12]} b4 {[%emt 0:02:13]} 22. Nf3 {[%emt 0:02:45]} Qe7 {[%emt 0:02:32]} 23. axb4 {[%emt 0:00:49]} (23. Rxd8 $11 Nxd8 24. Nd1 (24. axb4 axb4 25. Nd1 Qxe4 $15)) 23... axb4 {[%emt 0:00:15]} 24. Nb1 {[%emt 0:02:05]} Nxe4 {[%emt 0:04:52]} 25. Rde1 {[%emt 0:00:26]} Qc5 $17 {[%emt 0:07:57]} 26. Kh2 {[%emt 0:00:08]} Qd6+ {[%emt 0:11:00]} 27. Kg1 {[%emt 0:00:11]} Nf6 {[%emt 0:00:20]} 28. Nbd2 {[%emt 0:01:25]} Nd5 {[%emt 0:00:24]} 29. Qf2 {[%emt 0:00:31]} Qf6 {[%emt 0:00:46]} 30. c4 {[%emt 0:01:30]} bxc3 {[%emt 0:02:48]} 31. Ne4 {[%emt 0:00:12]} Qh6 {[%emt 0:01:19]} 32. bxc3 {[%emt 0:00:29]} Nf4 {[%emt 0:00:38]} 33. Qe3 {[%emt 0:01:10]} Rd3 {[%emt 0:00:21]} 34. Qc1 {[%emt 0:00:12]} Rfd8 {[%emt 0:03:10]} 35. Ne5 {[%emt 0:00:40]} Rd1 {[%emt 0:12:25]} 36. Qe3 {[%emt 0:01:31]} Rxe1 {[%emt 0:03:12]} 37. Rxe1 {[%emt 0:00:05]} g5 {[%emt 0:09:35]} 38. Qb6 {[%emt 0:00:49]} Qh4 {[%emt 0:05:37]} 39. Nf3 {[%emt 0:00:24]} Qh6 {[%emt 0:00:33]} 40. Qxb7 {[%emt 0:00:40]} f6 {[%emt 0:00:29]} 41. Qxc6 {[%emt 0:00:30]} Rf8 {[%emt 0:00:29]} 42. Nexg5 {[%emt 0:00:30]} Qg6 {[%emt 0:00:13]} 43. Qc4+ {[%emt 0:00:22]} Kg7 {[%emt 0:00:19]} 44. Qxf4 {[%emt 0:00:24]} fxg5 {[%emt 0:00:32]} 45. Qxg5 {[%emt 0:00:40]} Kh8 {[%emt 0:00:45]} 46. Qxg6 {[%emt 0:00:31]} hxg6 47. c4 {[%emt 0:00:19]} Kg7 {[%emt 0:00:10]} 48. c5 Rc8 {[%emt 0:00:04]} 49. Rc1 {[%emt 0:00:19]} Kf6 {[%emt 0:00:06]} 50. c6 {[%emt 0:00:30]} Rc7 {[%emt 0:00:04]} 51. Kf2 {[%emt 0:00:15]} Ke6 {[%emt 0:00:12]} 52. Nd4+ {[%emt 0:00:17]} Kd5 {[%emt 0:00:06]} 53. Nb5 {[%emt 0:00:08]} Rxc6 {[%emt 0:01:20]} 54. Rxc6 {[%emt 0:00:06]} Kxc6 {[%emt 0:00:01]} 55. Kf3 {[%emt 0:00:17]} Kd5 {[%emt 0:00:48]} 1-0

[Event "8th Memorial Ekrem Galijatovic 2022"]
[Site "Sarajevo"]
[Date "2022.03.15"]
[Round "6.4"]
[White "Kurtcehajic, Suad"]
[Black "Selimovic, Amir"]
[Result "1-0"]
[ECO "C10"]
[WhiteElo "1968"]
[BlackElo "1943"]
[Annotator "ChessBase"]
[PlyCount "59"]
[EventDate "2022.03.13"]
[EventType "tourn"]
[EventCountry "BIH"]
[SourceTitle "playchess.com"]
[Source "ChessBase"]
[SourceQuality "1"]
[TimeControl "5400+30"]

1. e4 {[%emt 0:06:26]} e6 {[%emt 0:00:06]} 2. d4 {[%emt 0:00:08]} d5 {[%emt 0:00:06]} 3. Nd2 {[%emt 0:00:05]} dxe4 {[%emt 0:00:05]} 4. Nxe4 {[%emt 0:00:03]} Bd7 {[%emt 0:00:08]} 5. Nf3 {[%emt 0:00:45]} Bc6 {[%emt 0:00:07]} 6. Bd3 {[%emt 0:04:49]} Nd7 {[%emt 0:00:11]} 7. O-O {[%emt 0:02:18]} Ngf6 {[%emt 0:00:07]} 8. Nxf6+ {[%emt 0:00:36]} Qxf6 {[%emt 0:05:19]} 9. Be2 {[%emt 0:02:39]} Bd6 10. c4 {[%emt 0:01:21]} Bxf3 {[%emt 0:31:45]} 11. Bxf3 {[%emt 0:00:12]} c6 {[%emt 0:00:16]} 12. Re1 {[%emt 0:15:20]} O-O {[%emt 0:00:34]} 13. Be3 {[%emt 0:02:08]} Rfe8 {[%emt 0:05:20]} 14. Qb3 {[%emt 0:04:27]} Rab8 {[%emt 0:03:18]} 15. d5 {[%emt 0:01:38]} Ne5 {[%emt 0:09:33]} 16. Be2 {[%emt 0:07:31]} c5 {[%emt 0:06:10]} 17. Rad1 {[%emt 0:03:37]} Qh4 {[%emt 0:04:21]} 18. g3 {[%emt 0:02:24]} Qf6 {[%emt 0:06:46]} 19. dxe6 {[%emt 0:06:45]} Rxe6 {[%emt 0:00:42]} 20. Qa3 {[%emt 0:06:23]} Nc6 {[%emt 0:03:21]} 21. Rxd6 {[%emt 0:04:32]} Rxd6 {[%emt 0:00:55]} 22. Bf4 {[%emt 0:00:05]} Rbd8 {[%emt 0:01:04]} 23. Bxd6 {[%emt 0:01:00]} Qxd6 {[%emt 0:00:34]} 24. Bf3 {[%emt 0:02:41]} Nd4 {[%emt 0:01:28]} 25. Be4 {[%emt 0:08:51]} Re8 {[%emt 0:01:34]} 26. Bxh7+ {[%emt 0:01:54]} Kxh7 {[%emt 0:00:02]} 27. Rxe8 {[%emt 0:00:14]} Qc6 {[%emt 0:00:11]} 28. Qd3+ {[%emt 0:00:23]} g6 {[%emt 0:00:02]} 29. Qe4 {[%emt 0:00:41]} Nf3+ {[%emt 0:00:15]} 30. Kg2 {[%emt 0:01:13]} 1-0

[Event "8th Memorial Ekrem Galijatovic 2022"]
[Site "Sarajevo"]
[Date "2022.03.15"]
[Round "7.1"]
[White "Haznadar, Nermin"]
[Black "Mrkovic, Nikola"]
[Result "1-0"]
[ECO "D53"]
[WhiteElo "1881"]
[BlackElo "1698"]
[Annotator "NA RC"]
[PlyCount "75"]
[EventDate "2022.03.13"]
[EventType "tourn"]
[EventCountry "BIH"]
[SourceTitle "playchess.com"]
[Source "ChessBase"]
[SourceQuality "1"]
[TimeControl "5400+30"]

{[%evp 10,75,23,21,59,25,19,3,0,-19,-14,-19,-10,-12,33,-3,42,10,11,16,14,15,39,0,90,114,204,211,205,209,224,210,214,192,208,178,227,227,276,281,280,283,290,281,281,287,313,327,316,321,333,312,319,284,306,314,272,297,310,361,373,333,405,360,528,564,738,906]} 1. d4 {[%emt 0:00:09]} d5 {[%emt 0:00:04]} 2. c4 {[%emt 0:00:39]} e6 {[%emt 0:00:04]} 3. Nc3 {[%emt 0:00:26]} Nf6 {[%emt 0:00:02]} 4. Bg5 {[%emt 0:00:51]} Be7 {[%emt 0:00:09]} 5. e3 {[%emt 0:00:30]} Nbd7 {[%emt 0:01:34]} 6. Nf3 {[%emt 0:00:47]} b6 {[%emt 0:01:30]} (6... h6 $11 7. Bh4 O-O) 7. Rc1 {[%emt 0:01:10]} (7. cxd5 $14 Nxd5 8. Nxd5 Bxg5 {[#]} 9. Nxc7+ $1 Qxc7 10. Nxg5) 7... Bb7 {[%emt 0:06:11]} 8. h3 {[%emt 0:01:44]} O-O {[%emt 0:04:40]} 9. Bd3 {[%emt 0:01:37]} Rc8 {[%emt 0:02:15]} 10. O-O {[%emt 0:04:26]} c5 {[%emt 0:02:40]} 11. cxd5 {[%emt 0:01:55]} exd5 {[%emt 0:02:21]} 12. Qa4 {[%emt 0:03:04]} cxd4 {[%emt 0:05:37]} (12... c4 $11 13. Bf5 (13. Qxa7 $2 Bc6 $19) 13... Bc6) 13. Qxd4 {[%emt 0:02:03]} Nc5 {[%emt 0:08:53]} 14. Bf5 {[%emt 0:04:19]} Ne6 {[%emt 0:08:35]} 15. Bxe6 {[%emt 0:08:06]} fxe6 {[%emt 0:00:16]} 16. Rfd1 {[%emt 0:01:31]} (16. Qe5 $5 {[%cal Re5e6]}) 16... Nd7 {[%emt 0:09:16]} (16... Qd7 $11 {keeps the balance.}) 17. Qg4 {[%emt 0:02:32]} Bxg5 {[%emt 0:18:26]} (17... Rf5 $16) 18. Nxg5 {[%emt 0:00:13]} Qf6 {[%emt 0:00:47]} 19. Qxe6+ {[%emt 0:00:24]} Qxe6 {[%emt 0:00:39]} 20. Nxe6 {[%emt 0:00:06]} Rfe8 {[%emt 0:03:49]} 21. Nf4 {[%emt 0:01:09]} Nf6 {[%emt 0:00:17]} 22. Nb5 {[%emt 0:04:15]} Rxc1 {[%emt 0:03:57]} (22... g5 $142) 23. Rxc1 {[%emt 0:00:06]} Rc8 {[%emt 0:00:48]} 24. Rxc8+ {[%emt 0:04:32]} Bxc8 {[%emt 0:00:02]} 25. Nxa7 {[%emt 0:01:59]} Bd7 {[%emt 0:00:05]} 26. Nd3 {[%emt 0:00:12]} Kf8 {[%emt 0:01:52]} 27. Ne5 {[%emt 0:00:11]} Ke7 {[%emt 0:00:48]} 28. Nxd7 {[%emt 0:00:10]} Nxd7 {[%emt 0:00:13]} 29. Nb5 {[%emt 0:00:25]} Nc5 {[%emt 0:00:16]} 30. Nc3 {[%emt 0:00:59]} Kd6 {[%emt 0:00:19]} 31. Kf1 {[%emt 0:00:54]} Nd3 {[%emt 0:00:48]} 32. b3 {[%emt 0:02:41]} Kc5 {[%emt 0:01:16]} 33. Ke2 {[%emt 0:00:20]} Ne5 {[%emt 0:00:17]} 34. a3 {[%emt 0:00:46]} b5 {[%emt 0:00:25]} 35. f4 {[%emt 0:01:18]} Nc6 {[%emt 0:00:16]} 36. g4 {[%emt 0:01:23]} Ne7 {[%emt 0:01:35]} 37. Kd3 {[%emt 0:00:32]} Nc6 $18 {[%emt 0:01:36]} 38. b4+ {[%emt 0:00:17]} 1-0

[Event "8th Memorial Ekrem Galijatovic 2022"]
[Site "Sarajevo"]
[Date "2022.03.17"]
[Round "9.1"]
[White "Selimovic, Amir"]
[Black "Mrkovic, Nikola"]
[Result "1/2-1/2"]
[ECO "D00"]
[WhiteElo "1943"]
[BlackElo "1698"]
[Annotator "NA"]
[PlyCount "32"]
[EventDate "2022.03.13"]
[EventType "tourn"]
[EventCountry "BIH"]
[SourceTitle "playchess.com"]
[Source "ChessBase"]
[SourceQuality "1"]
[TimeControl "5400+30"]

1. d4 {[%emt 0:00:06]} d5 {[%emt 0:00:01]} 2. Bf4 {[%emt 0:00:09]} Nf6 {[%emt 0:01:30]} 3. e3 {[%emt 0:00:11]} e6 {[%emt 0:00:49]} 4. Nf3 {[%emt 0:00:20]} Nbd7 {[%emt 0:00:36]} 5. c3 {[%emt 0:00:30]} b6 {[%emt 0:00:46]} 6. Bd3 {[%emt 0:00:22]} Be7 {[%emt 0:00:43]} 7. Nbd2 {[%emt 0:05:14]} Bb7 {[%emt 0:02:03]} 8. Ne5 {[%emt 0:00:49]} c5 {[%emt 0:16:48]} 9. Qf3 {[%emt 0:06:47]} Rc8 {[%emt 0:08:57]} 10. g4 {[%emt 0:02:24]} cxd4 {[%emt 0:05:34]} 11. exd4 {[%emt 0:01:21]} Nxe5 {[%emt 0:03:37]} 12. Bxe5 {[%emt 0:04:26]} Bd6 {[%emt 0:10:10]} 13. Bb5+ {[%emt 0:03:48]} Bc6 {[%emt 0:04:40]} 14. Nc4 {[%emt 0:16:42]} Bxe5 {[%emt 0:02:35]} 15. Bxc6+ {[%emt 0:12:03]} Rxc6 {[%emt 0:00:07]} 16. Nxe5 {[%emt 0:00:04]} Rc7 {[%emt 0:00:07]} 1/2-1/2

[Event "8th Memorial Ekrem Galijatovic 2022"]
[Site "Sarajevo"]
[Date "2022.03.17"]
[Round "9.2"]
[White "Konjicanin, Muris"]
[Black "Haznadar, Nermin"]
[Result "1-0"]
[ECO "A46"]
[WhiteElo "2166"]
[BlackElo "1881"]
[Annotator "ChessBase"]
[PlyCount "97"]
[EventDate "2022.03.13"]
[EventType "tourn"]
[EventCountry "BIH"]
[SourceTitle "playchess.com"]
[Source "ChessBase"]
[SourceQuality "1"]
[TimeControl "5400+30"]

1. d4 {[%emt 0:01:37]} Nf6 {[%emt 0:00:23]} 2. Nf3 {[%emt 0:00:29]} e6 {[%emt 0:00:32]} 3. Bf4 {[%emt 0:00:44]} c5 {[%emt 0:01:14]} 4. c3 {[%emt 0:00:49]} Nc6 {[%emt 0:01:57]} 5. e3 {[%emt 0:00:11]} d5 {[%emt 0:01:28]} 6. Nbd2 {[%emt 0:00:21]} Nh5 {[%emt 0:03:50]} 7. Bg5 {[%emt 0:02:58]} f6 {[%emt 0:06:20]} 8. Bh4 {[%emt 0:00:20]} g6 {[%emt 0:00:39]} 9. Bd3 {[%emt 0:01:33]} Be7 {[%emt 0:07:17]} 10. O-O {[%emt 0:03:08]} O-O {[%emt 0:05:53]} 11. Re1 {[%emt 0:10:19]} Ng7 {[%emt 0:09:51]} 12. Bg3 {[%emt 0:01:49]} Nh5 {[%emt 0:02:52]} 13. Rc1 {[%emt 0:07:29]} c4 {[%emt 0:05:45]} 14. Bc2 {[%emt 0:03:11]} Nxg3 {[%emt 0:01:06]} 15. hxg3 {[%emt 0:00:16]} f5 {[%emt 0:00:19]} 16. Ba4 {[%emt 0:00:34]} Bd7 {[%emt 0:13:09]} 17. Bxc6 {[%emt 0:02:22]} Bxc6 {[%emt 0:00:07]} 18. Ne5 {[%emt 0:00:08]} Qc7 {[%emt 0:00:30]} 19. f4 {[%emt 0:01:07]} Bf6 {[%emt 0:03:09]} 20. Ndf3 {[%emt 0:00:23]} Rab8 {[%emt 0:05:42]} 21. Kf2 {[%emt 0:00:33]} Kg7 {[%emt 0:01:02]} 22. Rh1 {[%emt 0:00:17]} h5 {[%emt 0:00:57]} 23. Nxg6 {[%emt 0:08:22]} Kxg6 {[%emt 0:00:50]} 24. Ne5+ {[%emt 0:00:09]} Bxe5 {[%emt 0:00:09]} 25. Qxh5+ {[%emt 0:00:11]} Kf6 {[%emt 0:00:09]} 26. Qg5+ {[%emt 0:01:07]} Kf7 {[%emt 0:00:09]} 27. Rh7+ {[%emt 0:00:46]} Ke8 {[%emt 0:00:07]} 28. Qg6+ {[%emt 0:08:24]} Kd8 {[%emt 0:00:46]} 29. Rxc7 {[%emt 0:01:56]} Bxc7 {[%emt 0:00:25]} 30. Rh1 {[%emt 0:01:05]} Re8 {[%emt 0:02:41]} 31. Rh7 {[%emt 0:00:28]} Bd6 {[%emt 0:01:07]} 32. Qf7 {[%emt 0:00:44]} Re7 {[%emt 0:03:56]} 33. Qg8+ {[%emt 0:01:05]} Be8 {[%emt 0:00:36]} 34. Rxe7 {[%emt 0:01:25]} Kxe7 {[%emt 0:00:17]} 35. g4 {[%emt 0:00:15]} fxg4 {[%emt 0:02:05]} 36. Qxg4 {[%emt 0:00:12]} Bf7 {[%emt 0:01:50]} 37. Qh4+ {[%emt 0:00:38]} Kd7 {[%emt 0:01:12]} 38. g4 {[%emt 0:00:31]} Be7 {[%emt 0:03:07]} 39. Qh7 {[%emt 0:00:19]} Rf8 {[%emt 0:00:42]} 40. Kg3 {[%emt 0:00:37]} Ke8 {[%emt 0:02:10]} 41. e4 {[%emt 0:00:35]} Bg8 {[%emt 0:08:24]} 42. Qh5+ {[%emt 0:00:18]} Kd7 {[%emt 0:00:09]} 43. e5 {[%emt 0:03:04]} Bf7 {[%emt 0:02:00]} 44. Qh7 {[%emt 0:00:10]} Be8 {[%emt 0:01:43]} 45. f5 {[%emt 0:00:37]} Rf7 {[%emt 0:00:49]} 46. fxe6+ {[%emt 0:00:11]} Kxe6 {[%emt 0:00:55]} 47. Qg6+ {[%emt 0:00:08]} Rf6 {[%emt 0:01:51]} 48. Qxe8 {[%emt 0:01:07]} Rf1 {[%emt 0:00:28]} 49. Qg8+ {[%emt 0:00:31]} 1-0

[Event "8th Memorial Ekrem Galijatovic 2022"]
[Site "Sarajevo"]
[Date "2022.03.17"]
[Round "9.3"]
[White "Hadzovic, Amir"]
[Black "Trkulja, Goran"]
[Result "1/2-1/2"]
[ECO "C48"]
[WhiteElo "2290"]
[BlackElo "2255"]
[Annotator "ChessBase"]
[PlyCount "37"]
[EventDate "2022.03.13"]
[EventType "tourn"]
[EventCountry "BIH"]
[SourceTitle "playchess.com"]
[Source "ChessBase"]
[SourceQuality "1"]
[TimeControl "5400+30"]

1. e4 {[%emt 0:01:13]} e5 {[%emt 0:01:50]} 2. Nf3 {[%emt 0:01:57]} Nc6 {[%emt 0:00:21]} 3. Nc3 {[%emt 0:00:32]} Nf6 {[%emt 0:05:09]} 4. Bb5 {[%emt 0:03:48]} Bc5 {[%emt 0:04:18]} 5. d3 {[%emt 0:01:58]} d6 {[%emt 0:01:23]} 6. Be3 {[%emt 0:00:48]} Bb6 {[%emt 0:01:03]} 7. h3 {[%emt 0:02:15]} Bd7 {[%emt 0:01:01]} 8. O-O {[%emt 0:05:13]} Ne7 {[%emt 0:08:40]} 9. Bxd7+ {[%emt 0:01:07]} Qxd7 {[%emt 0:00:13]} 10. Re1 {[%emt 0:02:26]} Bxe3 {[%emt 0:01:56]} 11. Rxe3 {[%emt 0:00:31]} Ng6 {[%emt 0:00:40]} 12. d4 {[%emt 0:00:40]} exd4 {[%emt 0:00:40]} 13. Nxd4 {[%emt 0:01:20]} O-O {[%emt 0:00:34]} 14. Qd2 {[%emt 0:00:39]} Rfe8 {[%emt 0:01:28]} 15. Rae1 {[%emt 0:04:03]} Re5 {[%emt 0:04:03]} 16. Nf3 {[%emt 0:02:15]} Ree8 {[%emt 0:00:36]} 17. Nd4 {[%emt 0:01:02]} Re5 {[%emt 0:00:25]} 18. Nf3 {[%emt 0:01:30]} Ree8 {[%emt 0:00:16]} 19. Nd4 {[%emt 0:00:43]} 1/2-1/2

[Event "8th Memorial Ekrem Galijatovic 2022"]
[Site "Sarajevo"]
[Date "2022.03.17"]
[Round "9.4"]
[White "Alhdad, Ahmed O."]
[Black "Kurtcehajic, Suad"]
[Result "0-1"]
[ECO "D40"]
[WhiteElo "1811"]
[BlackElo "1968"]
[Annotator "ChessBase"]
[PlyCount "38"]
[EventDate "2022.03.13"]
[EventType "tourn"]
[EventCountry "BIH"]
[SourceTitle "playchess.com"]
[Source "ChessBase"]
[SourceQuality "1"]
[TimeControl "5400+30"]

1. d4 {[%emt 0:09:26]} d5 {[%emt 0:02:47]} 2. Nf3 {[%emt 0:00:35]} Nf6 {[%emt 0:00:05]} 3. c4 {[%emt 0:00:09]} e6 {[%emt 0:00:05]} 4. Nc3 {[%emt 0:00:17]} c5 {[%emt 0:01:52]} 5. e3 {[%emt 0:01:14]} Nc6 {[%emt 0:03:02]} 6. g3 {[%emt 0:01:10]} cxd4 {[%emt 0:04:40]} 7. exd4 {[%emt 0:00:12]} dxc4 {[%emt 0:00:55]} 8. Bg2 {[%emt 0:00:45]} Be7 {[%emt 0:05:11]} 9. Qa4 {[%emt 0:03:20]} Bd7 {[%emt 0:06:38]} 10. Qxc4 {[%emt 0:00:08]} Nb4 {[%emt 0:13:58]} 11. O-O {[%emt 0:01:37]} Rc8 {[%emt 0:01:14]} 12. Qe2 {[%emt 0:02:47]} Bc6 {[%emt 0:02:46]} 13. Bf4 {[%emt 0:04:49]} O-O {[%emt 0:03:20]} 14. h3 {[%emt 0:01:41]} Nbd5 {[%emt 0:01:19]} 15. Be5 {[%emt 0:06:56]} Nxc3 {[%emt 0:02:01]} 16. bxc3 {[%emt 0:00:09]} Qa5 {[%emt 0:00:03]} 17. c4 {[%emt 0:01:14]} Rfd8 {[%emt 0:05:41]} 18. g4 {[%emt 0:02:55]} Qa6 {[%emt 0:03:26]} 19. Rfc1 {[%emt 0:05:52]} Bd5 {[%emt 0:01:39]} 0-1